Cogmind - Beta 11.1 @@@ ROGUE MODE // 2022.05.07 @ 00:56:38 Player: Loquitran Result: Destroyed by H-55 Commando with Gauss Rifle Performance ------------- Evolutions (2) 1000 Regions Visited (4) 800 Robots Destroyed (32) 160 Value Destroyed (813) 813 Prototype IDs (5) 100 Alien Tech Used (0) 0 Bonus (0) 0 TOTAL SCORE: 2873 Bonus ------- None Cogmind --------- Core Integrity 0/550 Matter 136/300 Energy 100/100 System Corruption 19% Temperature Cool (4) Movement Core (250) Ox4 Location -8/Materials Parts ------- > --- POWER (2) -------- (None) > --- PROPULSION (4) --- (None) > --- UTILITY (3) ------ Disposable Heat Sink > --- WEAPON (2) ------- Flak Cannon Flak Cannon > --- INVENTORY (5) ---- Large Battery (200) Weight Redist. System ECM Suite EMP Blaster Peak State ------------ > --- POWER ------------ Improved Ion Engine > --- PROPULSION ------- Improved VTOL Module Improved VTOL Module Improved VTOL Module Improved VTOL Module > --- UTILITY ---------- Disposable Heat Sink Small Storage Unit ECM Suite > --- WEAPON ----------- Light Assault Rifle Plasma Cutter > --- INVENTORY -------- Cooling System Large Battery Weight Redist. System Spread Laser Spread Laser Light Assault Rifle EMP Blaster [Rating: 26] Favorites ----------- Power Ion Engine Engine Ion Engine Power Core Light Nuclear Core Propulsion Aluminum Leg Leg Aluminum Leg Flight Unit Improved VTOL Module Utility Small Storage Unit Device ECM Suite Storage Small Storage Unit Processor Visual Processing Unit Weapon Medium Laser Energy Gun Medium Laser Ballistic Gun Light Assault Rifle Ballistic Cannon Flak Cannon Special Weapon Mining Laser Build | -11 -10 -9 -9 -8 ------- Run | Scr Mat Mat Min Mat Slots Evolved 4 | . . 2 . 2 Power 1 | . . . . 1 Propulsion 2 | . . 2 . . Utility 1 | . . . . 1 Weapon . | . . . . . Parts Attached 47 | . 18 18 1 10 Power 7 | . 3 3 1 . Engine 5 | . 2 2 1 . Core 2 | . 1 1 . . Reactor . | . . . . . Propulsion 19 | . 9 10 . . Treads . | . . . . . Leg 7 | . 7 . . . Wheel . | . . . . . Hover . | . . . . . Flight 12 | . 2 10 . . Utility 8 | . 1 3 . 4 Device 5 | . . 2 . 3 Storage 1 | . . . . 1 Processor 2 | . 1 1 . . Hackware . | . . . . . Protection . | . . . . . Artifact . | . . . . . Weapon 13 | . 5 2 . 6 Energy Gun 6 | . 5 . . 1 Energy Cannon . | . . . . . Ballistic Gun 3 | . . 2 . 1 Ballistic Cannon 2 | . . . . 2 Launcher . | . . . . . Special Weapon 2 | . . . . 2 Impact Weapon . | . . . . . Slashing Weapon . | . . . . . Piercing Weapon . | . . . . . Special Melee Weapon . | . . . . . Unidentified Prototypes 1 | . . 1 . . Corrupted Parts 1 | . . . . 1 System Corruption 5 | . . . . 5 Parts Lost 17 | . 3 1 2 11 Power 5 | . 2 1 1 1 Propulsion 5 | . 1 . . 4 Utility 2 | . . . . 2 Weapon 5 | . . . 1 4 Highest Loss Streak 10 | . 2 1 2 10 To Critical Strikes . | . . . . . Average Slot Usage (%) 95 | . 99 99 98 69 Engine 10 | . 13 1 11 6 Core 1 | . . 9 . . Leg 19 | . 27 . . . Flight 11 | . . 42 44 24 Device 3 | . . 9 11 16 Storage 12 | . 14 11 11 5 Processor 9 | . 13 1 . . Energy Gun 20 | . 28 7 . . Ballistic Gun 3 | . . 14 20 7 Naked Turns . | . . . . . Heaviest Build 18 | 11 15 17 16 18 Greatest Support 20 | 20 20 20 20 20 Greatest Overweight (x) 2 | . 2 1 . 2 Average Overweight (x) . | . . . . . Largest Inventory Capacity 8 | . 8 8 8 8 Average Capacity 7 | . 8 8 8 6 Most Carried 8 | . 8 8 7 7 Average Carried 7 | . 7 7 6 5 Final Capacity 8 | 8 8 8 8 5 Final Carried 8 | 6 8 7 7 4 Class Distribution -------------------- 71% | Mutant 25% | Sprinter Dominant Class ---------------- Mutant | -10/Materials Sprinter | -9/Materials Sprinter | -9/Mines Sprinter | -8/Materials Resources | -11 -10 -9 -9 -8 ----------- Run | Scr Mat Mat Min Mat Matter Collected 627 | 197 224 201 5 . Remotely . | . . . . . Salvage Created 1024 | . 665 227 . 132 Parts 64 | . 36 15 . 13 Haulers Intercepted 3 | . 2 1 . . Recyclers Shooed 1 | . 1 . . . Parts Field Recycled . | . . . . . Retrieved Matter . | . . . . . Parts Self-Destructed . | . . . . . Prevented . | . . . . . Kills | -11 -10 -9 -9 -8 ------- Run | Scr Mat Mat Min Mat Combat Hostiles Destroyed 22 | . 13 3 . 6 Guns 18 | . 13 3 . 2 Cannons 4 | . . . . 4 Classes Destroyed 8 | . 7 1 . . Worker 1 | . 1 . . . Builder 1 | . 1 . . . Hauler 3 | . 2 1 . . Operator 1 | . 1 . . . Watcher 4 | . 2 2 . . Swarmer 5 | . 2 . . 3 Grunt 13 | . 11 1 . 1 Sentry 4 | . . 2 . 2 Best Kill Streak 6 | . 3 3 . 6 Combat Bots Only 6 | . 3 1 . 6 Max Kills in Single Turn 1 | . 1 1 . 1 Gunslinging . | . . . . . Exploded . | . . . . . Melee . | . . . . . Uniques/NPCs Destroyed . | . . . . . Combat | -11 -10 -9 -9 -8 -------- Run | Scr Mat Mat Min Mat Damage Taken 2668 | . 807 173 243 1445 Core 864 | . 249 16 48 551 Absorbed by Shields . | . . . . . Core Remaining (%) 61 | 100 . . 84 . Volleys Fired 125 | . 72 20 . 33 Largest 2 | . 2 2 . 2 Hottest 115 | . 115 115 . 100 Shots Fired 222 | . 141 40 . 41 Gun 188 | . 141 40 . 7 Cannon 18 | . . . . 18 Launcher . | . . . . . Special 16 | . . . . 16 Kinetic 46 | . . 26 . 20 Thermal 176 | . 141 14 . 21 Explosive . | . . . . . Electromagnetic . | . . . . . Robot Hit Streak 8 | . 8 8 . 5 Robot Miss Streak 12 | . 7 3 . 12 Penetration Max . | . . . . . Secondary Targets 1 | . . . . 1 Max Gunslinging Chain 1 | . . . . 1 Shots Hit Robots 127 | . 79 28 . 20 Core Hits 71 | . 37 13 . 21 Critical Kills . | . . . . . Critical Parts Destroyed . | . . . . . Critical Strikes 3 | . 2 1 . . Burn 3 | . 2 1 . . Melee Attacks . | . . . . . Impact . | . . . . . Slashing . | . . . . . Piercing . | . . . . . Sneak Attacks . | . . . . . Combat Hostiles . | . . . . . Follow-up Attacks . | . . . . . Damage Inflicted 1581 | . 1003 279 . 299 Guns 1383 | . 998 279 . 106 Cannons 193 | . . . . 193 Explosions . | . . . . . Melee . | . . . . . Ramming 5 | . 5 . . . Kinetic 359 | . . 149 . 210 Thermal 1217 | . 998 130 . 89 Explosive . | . . . . . Electromagnetic . | . . . . . Impact . | . . . . . Slashing . | . . . . . Piercing . | . . . . . Highest Corruption 19 | . 2 . . 19 Average Corruption 4 | . 2 . . 10 Corruption Purged . | . . . . . Corruption Blocked . | . . . . . Effects 8 | . 2 . . 6 Message Errors 2 | . . . . 2 Matter Fused 1 | . . . . 1 Heat Flow Errors 1 | . 1 . . . Data Loss (minor) 2 | . 1 . . 1 Weapon Failures 2 | . . . . 2 Overload Shots . | . . . . . Overflow Damage . | . . . . . Projectiles . | . . . . . Explosions . | . . . . . Melee . | . . . . . Knockbacks 2 | . . . . 2 Impact . | . . . . . Kinetic 2 | . . . . 2 Secondary . | . . . . . Self-Inflicted Damage . | . . . . . Shots . | . . . . . Rammed . | . . . . . Targets Rammed 2 | . 2 . . . Kicked 2 | . 2 . . . Crushed . | . . . . . Highest Temperature 471 | . 471 324 14 69 Average Temperature 102 | . 122 87 5 25 Received Heat Transfer 614 | . 378 72 20 144 Effects 7 | . 6 1 . . Shutdowns 2 | . 2 . . . Energy Bleed 3 | . 3 . . . Matter Decay 1 | . 1 . . . Short Circuit 1 | . . 1 . . Siege Activations . | . . . . . Robots Corrupted . | . . . . . Combat Hostiles . | . . . . . Parts Fried . | . . . . . Impact Corruptions . | . . . . . Robots Melted . | . . . . . Combat Hostiles . | . . . . . Parts Melted 15 | . 10 5 . . Heat Transferred 3302 | . 2785 407 . 110 Parts Sabotaged . | . . . . . Parts Stolen . | . . . . . Parts Stripped . | . . . . . Power Chain Reactions . | . . . . . Missiles Intercepted . | . . . . . Alert | -11 -10 -9 -9 -8 ------- Run | Scr Mat Mat Min Mat Peak Influence 322 | . 322 265 193 288 Initial 103 | . . 92 103 66 Average 96 | . 67 161 146 172 Maximum Alert Level 1 | . 1 1 . 1 Low Security (%) 82 | . 86 83 100 52 Level 1 17 | . 13 16 . 47 Level 2 . | . . . . . Level 3 . | . . . . . Level 4 . | . . . . . Level 5 . | . . . . . High Security . | . . . . . Max Security . | . . . . . Squads Dispatched 8 | . 4 1 . 3 Investigation 5 | . 3 1 . 1 Extermination . | . . . . . Reinforcement 3 | . 1 . . 2 Assault . | . . . . . Garrison . | . . . . . Intercept . | . . . . . Searches Triggered . | . . . . . Construction Impeded . | . . . . . Haulers Reinforced . | . . . . . Active Scanning Responses . | . . . . . Cargo Convoy Interrupts . | . . . . . Stealth | -11 -10 -9 -9 -8 --------- Run | Scr Mat Mat Min Mat Distress Signals 2 | . 1 1 . . Communications Jammed . | . . . . . Distress Signals . | . . . . . Times Spotted 63 | . 22 8 20 13 Peak Tracking Total 11 | . 5 3 11 5 Tactical Retreats 3 | . . 1 1 1 Traps | -11 -10 -9 -9 -8 ------- Run | Scr Mat Mat Min Mat Traps Triggered 5 | . 3 1 . 1 Indirectly . | . . . . . Trap Hack Attempts . | . . . . . Triggered . | . . . . . Disarmed . | . . . . . Reprogrammed . | . . . . . Reused . | . . . . . Traps Extracted . | . . . . . Installed . | . . . . . Triggered . | . . . . . Machines | -11 -10 -9 -9 -8 ---------- Run | Scr Mat Mat Min Mat Machines Disabled 1 | . 1 . . . Max in Single Turn 1 | . 1 . . . Machines Sabotaged . | . . . . . Garrisons Compromised . | . . . . . Overloaded Fab Kills . | . . . . . Hacking | -11 -10 -9 -9 -8 --------- Run | Scr Mat Mat Min Mat Machines Accessed 8 | . 4 3 . 1 Terminals 7 | . 4 2 . 1 Fabricators . | . . . . . Repair Stations . | . . . . . Recycling Units 1 | . . 1 . . Scanalyzers . | . . . . . Garrison Access . | . . . . . Total Hacks 22 | . 10 9 . 3 Successful 10 | . 3 5 . 2 Failed 12 | . 7 4 . 1 Catastrophic 3 | . 3 . . . Database Lockouts . | . . . . . Manual 5 | . 2 3 . . Terminals 20 | . 10 7 . 3 Fabricators . | . . . . . Repair Stations . | . . . . . Recycling Units 2 | . . 2 . . Scanalyzers . | . . . . . Garrison Access . | . . . . . Terminal Hacks 8 | . 3 3 . 2 Robot Analysis 1 | . . 1 . . Prototype ID Bank 2 | . 1 . . 1 Emergency Access Points 1 | . . 1 . . Unreport Threat 1 | . 1 . . . Locate Traps 1 | . . 1 . . Dispatch Records 1 | . 1 . . . Zone Layout 1 | . . . . 1 Fabricator Hacks . | . . . . . Repair Station Hacks . | . . . . . Recycling Unit Hacks 2 | . . 2 . . Report Inventory 1 | . . 1 . . Retrieve Components 1 | . . 1 . . Scanalyzer . | . . . . . Garrison Access Hacks . | . . . . . Unauthorized Hacks . | . . . . . Terminals . | . . . . . Fabricators . | . . . . . Repair Stations . | . . . . . Recycling Units . | . . . . . Scanalyzers . | . . . . . Garrison Access . | . . . . . Data Cores Recovered . | . . . . . Used . | . . . . . Hacking Detections 8 | . 4 3 . 1 Full Trace Events 5 | . 2 2 . 1 Feedback Events . | . . . . . Feedback Blocked . | . . . . . Robot Schematics Acquired . | . . . . . Robots Built . | . . . . . Authchips . | . . . . . Time . | . . . . . Total Robot Build Rating . | . . . . . Part Schematics Acquired . | . . . . . Parts Built . | . . . . . Authchips . | . . . . . Time . | . . . . . Total Part Build Rating . | . . . . . Parts Repaired . | . . . . . Time . | . . . . . Parts Recycled . | . . . . . Recycled Matter . | . . . . . Retrieved Matter . | . . . . . Retrieved Components 4 | . . 4 . . Parts Scanalyzed . | . . . . . Part Schematics Acquired . | . . . . . Parts Damaged . | . . . . . Bothacking | -11 -10 -9 -9 -8 ------------ Run | Scr Mat Mat Min Mat Used RIF Installer . | . . . . . Robots Hacked . | . . . . . Non-combat . | . . . . . Combat . | . . . . . Robot Hacks Applied . | . . . . . Relay Couplers Released . | . . . . . Fabnet Peak Effective % . | . . . . . Robots Rewired . | . . . . . Allies Hacked . | . . . . . Hacks Repelled . | . . . . . Allies | -11 -10 -9 -9 -8 -------- Run | Scr Mat Mat Min Mat Total Allies . | . . . . . Largest Group . | . . . . . Highest-Rated Group . | . . . . . Highest-Rated Ally . | . . . . . Total Orders . | . . . . . Ally Attacks . | . . . . . Total Damage . | . . . . . Kills . | . . . . . Allies Corrupted . | . . . . . Allies Melted . | . . . . . Intel | -11 -10 -9 -9 -8 ------- Run | Scr Mat Mat Min Mat Robot Analysis Total 1 | . . 1 . . Derelict Logs Recovered . | . . . . . Drone Launches . | . . . . . Drone Recoveries . | . . . . . Exploration | -11 -10 -9 -9 -8 ------------- Run | Scr Mat Mat Min Mat Turns Passed 1812 | . 1267 232 108 205 Spaces Moved 1314 | 1 476 332 285 220 Core 4 | . . . . 4 Treads . | . . . . . Legs 476 | 1 475 . . . Wheels . | . . . . . Hover . | . . . . . Flight 834 | . 1 332 285 216 Fastest Speed 26 | 120 120 26 26 26 Average Speed 61 | 120 120 26 26 32 Slowest Speed 195 | 120 195 109 26 150 Overloaded Moves . | . . . . . Propulsion Burnouts . | . . . . . Robots Hopped 17 | . . 9 7 1 Cave-ins Triggered 2 | . . . . 2 Exploration Rate (%) 39 | 2 70 30 59 34 Regions Visited 4 Branch Regions 1 Pre-discovered Areas . | . . . . . Known Exits Taken . | . . . . . Unknown Exits Taken 4 | 1 1 1 1 . Scrap Searched 1 | . . . 1 . Spaces Dug 10 | . . . . 10 Terrain Destroyed 10 | . . . . 10 Melee . | . . . . . Projectile 10 | . . . . 10 AOE . | . . . . . Terrain Rammed . | . . . . . Walls Destroyed . | . . . . . Machines Disabled . | . . . . . Actions | -11 -10 -9 -9 -8 --------- Run | Scr Mat Mat Min Mat Total 2056 | . 1032 430 311 283 Wait 546 | . 442 54 32 18 Move 1275 | . 475 313 270 217 Hop 17 | . . 9 7 1 Pick Up 12 | . 7 4 1 . Fast Attach 18 | . 5 8 . 5 Attach 12 | . 4 3 1 4 Detach 7 | . 3 1 . 3 Swap 17 | . 9 7 . 1 Drop 24 | . 13 11 . . Fire 125 | . 72 20 . 33 Melee . | . . . . . Ram . | . . . . . Kick 2 | . 2 . . . Crush . | . . . . . Escape Stasis 1 | . . . . 1 Rewire . | . . . . . Trap . | . . . . . Miscellaneous . | . . . . . Route ------- -11/Scrapyard -10/Materials (discovered 2 exits: *Mat x2) -9/Materials -9/Mines (discovered 2 exits: *Mat x2) -8/Materials History --------- Turn | Location | Event 1 | -11/Scrapyard | Discovered new exit (range 0) 1 | -11/Scrapyard | Entered Materials 310 | -10/Materials | Build established: Mutant 723 | -10/Materials | Discovered new exit (range 17) 1094 | -10/Materials | Core integrity fell below 50% 1122 | -10/Materials | Discovered new exit (range 12) 1177 | -10/Materials | Core integrity fell below 20% 1268 | -10/Materials | Entered another Materials area 1268 | -9/Materials | Evolved 2 slots: Propulsion x2 1490 | -9/Materials | Discovered new exit (range 13) 1500 | -9/Materials | Entered Mines 1545 | -9/Mines | Met a Derelict bent on vengeance 1570 | -9/Mines | Assembled infested the area 1575 | -9/Mines | Assisted by a Guerilla fighting off Assembled 1578 | -9/Mines | Build established: Sprinter 1602 | -9/Mines | Discovered new exit (range 7) 1604 | -9/Mines | Discovered new exit (range 5) 1607 | -9/Mines | Received a Mining Laser from a helpful Derelict 1608 | -9/Mines | Entered Materials 1608 | -8/Materials | Evolved 2 slots: Power x1, Utility x1 1700 | -8/Materials | Crushed by falling debris 1738 | -8/Materials | Crushed by falling debris 1738 | -8/Materials | System corruption reached 10% 1756 | -8/Materials | Core integrity fell below 50% 1787 | -8/Materials | Core integrity fell below 20% 1806 | -8/Materials | Lost 10 parts (1p4n2u3w) 1813 | -8/Materials | Destroyed by H-55 Commando with Gauss Rifle Last Messages --------------- 01788_ Acquired Corrupted Flak Cannon. 01788_ Integrated Corrupted Flak Cannon (+5). 01789_ System corrupted: Flak Cannon jammed. 01790_ C 01813_ Slug penetrates Wall. Map ----- +----------------------------------------------------+ | ?????????????????????????????????????????????????? | | ?????????????????????????????????????????????????? | | ?????????????????????????????????????????????????? | | ?????????????????????????????????????????????????? | | ?????????????????????????????????????????????????? | | ?????????????????????????????????????????????????? | | ?????????????????????????????????????????????????? | | ###??????????????????????????????????????????????? | | ###??????????????????????????????????????????????? | | ####?????????????????????????????????????????????? | | ##[#?????????????????????????????????????????????? | | #"#########????????????????? ????????????????????? | | # #????????????????o ????????????????????? | | # ||#????????????????g ????????????????????? | | # |||#????????????????/#????????????????????? | | # |||#???????????????? #????????????????????? | | "#+##+#######??????????????g#???######???????????? | | + #?### #######?????### #### ???????????? | | # #?# * [####### w ??????????? | | # ###!%!= ##^ !!* ???????????? | | ## %/* != """ + !!! ?????????????? | | ##+## #= != """ ## !*! k ????????????? | | ## # """ ## ^ %! ???????????????? | | """## # ## ##?????????????????? | | R"## #####+###### T#?????????????????? | | """# !=%% @!=%=#??????????????????? | | # =%! ! #??????????????????? | | + [ !! /h"""?????????????? | | # r ## """?????????????? | | # * #???""?????????????? | | "" # #########+#########??????????????????? | | " # #????????????????????????????????????? | | # +????????????????????????????????????? | | ??# ####????????????????????????????????????? | | ???# #???????????????????????????????????????? | | ???# #???????????????????????????????????????? | | ???# #???????????????????????????????????????? | | ?#####+#####?????????????????????????????????????? | | ?# #?????????????????????????????????????? | | ?# #?????????????????????????????????????? | | ?# #?????????????????????????????????????? | | ?# #?????????????????????????????????????? | | ?# """ """ #?????????????????????????????????????? | | ?# """ """ #?????????????????????????????????????? | | ?# """ """ #?????????????????????????????????????? | | ?# #?????????????????????????????????????? | | ?#######"###?????????????????????????????????????? | | ??# #?????????????????????????????????????? | | ??# #?????????????????????????????????????? | | ??# #+##+#######??????????????????????????? | +----------------------------------------------------+ Best States ------------- Heat Dissipation 53 Coolant Potential 50 Energy Generation 14 Energy Capacity 265 Matter Stores 300 Matter Capacity 300 Sight Range 18 Robot Scan Range 14 Terrain Scan Density 10 ECM Strength 1 Evasion (%) 64 Item Schematics ----------------- None Robot Schematics ------------------ None Fabricated ------------ Nothing Alien Tech Used ----------------- None Achievements -------------- Close Call More Dakka Please Unlikely Earthworm Challenges ------------ None Game ------ Seed SuspensionShrapnelStick Manual? 0 Play Time 00:29:25 Cumulative 10.8 hours Start 2022.05.07 @ 00:23:10 End 2022.05.07 @ 00:56:38 Sessions 1 Manual Loads 0 Difficulty Rogue Special Mode None Game No. 15 Rogue 15 Adventurer 0 Explorer 0 Win Type - Total 0 Types 0/0/0/0/0/0/0/0/0 Lore% 15 Gallery% 21 Achievement% 21 Wizard Run 0 Options --------- ASCII 0 Keyboard 0 Movement Numpad Keybinds 0 Fullscreen 0 Font 16/SmallcapsGlow Map View 112x50 Tactical HUD 1 Map Filters NONE Filters NONE Steam 1 RUN: 03db243f-5ac5-427b-bfaf-b669bc7ca20a